bitfinex/quotes_BTCUSD_20220218
["timestamp","ask_amount","ask_price","bid_price","bid_amount"]
[1645179460557,1.03280116,40855.0,40854.0,0.0312325]
[1645179462162,1.08770116,40855.0,40854.0,0.0312325]
[1645179462362,1.18770116,40855.0,40854.0,0.0312325]
[1645179463807,1.18770116,40855.0,40854.0,0.0302325]
[1645179464707,1.18770116,40855.0,40854.0,0.0312325]
[1645179465810,1.18770116,40855.0,40854.0,0.0302325]
[1645179466610,1.18770116,40855.0,40854.0,0.0312325]
[1645179467858,1.18770116,40855.0,40854.0,0.0012325]
[1645179468655,1.18770116,40855.0,40854.0,0.0022325]
[1645179469558,1.18770116,40855.0,40854.0,0.00233029]
[1645179469756,1.4336874,40855.0,40854.0,0.00233029]
[1645179469958,1.15586006,40855.0,40854.0,0.00133029]
[1645179470558,1.15586006,40855.0,40854.0,0.00233029]
[1645179471009,1.43516361,40855.0,40854.0,0.00233029]
[1645179471912,1.43516361,40855.0,40854.0,0.00133029]
[1645179472109,1.33516361,40855.0,40854.0,0.00133029]
[1645179472311,1.08917737,40855.0,40854.0,0.00133029]
[1645179473110,4.08917737,40855.0,40854.0,0.00133029]
[1645179482962,4.03427737,40855.0,40854.0,0.00133029]
[1645179485170,4.03386111,40855.0,40854.0,0.00133029]
[1645179486811,4.45386111,40855.0,40854.0,0.00133029]
[1645179491674,4.17455756,40855.0,40854.0,0.00133029]
[1645179493072,4.51796967,40855.0,40854.0,0.00133029]
[1645179494718,4.51796967,40855.0,40854.0,0.00233029]
[1645179497769,1.51796967,40855.0,40854.0,0.00233029]
[1645179497968,1.51796967,40855.0,40854.0,0.00133029]
[1645179498870,1.51796967,40855.0,40854.0,0.00233029]
[1645179500073,1.51796967,40855.0,40854.0,0.00133029]
[1645179500911,1.17455756,40855.0,40854.0,0.00133029]
[1645179501922,1.45581597,40855.0,40854.0,0.00133029]
[1645179502715,1.45581597,40855.0,40854.0,0.00233029]
[1645179503717,1.17455756,40855.0,40854.0,0.00233029]
[1645179504117,1.17455756,40855.0,40854.0,0.00133029]
[1645179504766,1.17455756,40855.0,40854.0,0.00233029]
[1645179505974,1.17455756,40855.0,40854.0,0.00133029]
[1645179507070,1.47801355,40855.0,40854.0,0.00133029]
[1645179507470,1.17455756,40855.0,40854.0,0.00133029]
[1645179507670,1.17455756,40855.0,40854.0,0.00123348]
[1645179508716,1.49101356,40855.0,40854.0,0.00223348]
[1645179509718,1.17455756,40855.0,40854.0,0.00223348]
[1645179509918,1.17455756,40855.0,40854.0,0.00123348]
[1645179511022,1.47299231,40855.0,40854.0,0.00123348]
[1645179511219,1.17455756,40855.0,40854.0,0.00123348]
[1645179512264,1.49156059,40855.0,40854.0,0.00123348]
[1645179513467,1.17455756,40855.0,40854.0,0.00123348]
[1645179514570,1.44038781,40855.0,40854.0,0.00123348]
[1645179514871,1.44038781,40855.0,40854.0,0.00223348]
[1645179516821,1.44038781,40855.0,40854.0,0.00123348]
[1645179518323,1.44038781,40855.0,40854.0,0.00223348]
[1645179518826,1.44038781,40855.0,40854.0,0.00323348]
[1645179519023,1.17455756,40855.0,40854.0,0.00323348]
[1645179519667,1.17455756,40855.0,40854.0,0.00123348]
[1645179521373,1.50209059,40855.0,40854.0,0.00123348]
[1645179523437,1.55699059,40855.0,40854.0,0.00123348]
[1645179530084,1.55622659,40855.0,40854.0,0.00123348]
[1645179535570,1.22869356,40855.0,40854.0,0.00123348]
[1645179535970,1.22869356,40855.0,40854.0,0.00109291]
[1645179536570,1.53386677,40855.0,40854.0,0.00109291]
[1645179536971,1.53386677,40855.0,40854.0,0.00151209]
[1645179540024,1.47896677,40855.0,40854.0,0.00151209]
[1645179543877,1.17379356,40855.0,40854.0,0.00151209]
[1645179547227,1.48955051,40855.0,40854.0,0.00151209]
[1645179547427,1.17379356,40855.0,40854.0,0.00151209]
[1645179548725,1.50358148,40855.0,40854.0,0.00151209]
[1645179549585,1.51358148,40855.0,40854.0,0.00075009]
[1645179549780,1.56848148,40855.0,40854.0,0.00075009]
[1645179551876,1.56848148,40855.0,40854.0,0.0015033]
[1645179559173,1.51358148,40855.0,40854.0,0.0015033]
[1645179566678,1.52816178,40855.0,40854.0,0.0015033]
[1645179572173,1.52816178,40855.0,40854.0,0.00142943]
[1645179574279,1.2,40854.0,40842.0,0.00031728]
[1645179574484,0.05716268,40850.0,40841.0,0.00031728]
[1645179574779,0.05716268,40846.0,40840.0,0.00031728]
[1645179574979,0.05716268,40842.0,40838.0,0.00042808]
[1645179575178,0.0549,40847.0,40837.0,0.00031728]
[1645179575179,0.05716268,40839.0,40837.0,0.00031728]
[1645179575379,0.2078514,40841.0,40838.0,0.331488]
[1645179575685,0.05455412,40839.0,40838.0,0.331488]
[1645179576130,0.05455412,40839.0,40838.0,0.334488]
[1645179576331,0.05455412,40839.0,40838.0,0.33406]
[1645179576930,0.122495,40845.0,40838.0,0.33406]
[1645179577134,0.00867275,40841.0,40838.0,0.003]
[1645179577332,0.122495,40845.0,40839.0,0.33106]
[1645179577531,0.04713664,40841.0,40836.0,0.2627372]
[1645179577730,0.061248,40842.0,40837.0,0.33180527]
[1645179577932,0.04988057,40838.0,40837.0,0.33148799]
[1645179578132,0.07,40838.0,40837.0,0.33180527]
[1645179578335,0.061248,40842.0,40837.0,0.33180527]
[1645179578533,0.00867275,40838.0,40837.0,0.33180527]
[1645179578732,0.00867275,40838.0,40837.0,0.33137728]
[1645179578935,0.00867275,40838.0,40837.0,0.33180527]
[1645179579673,0.00589954,40841.0,40839.0,0.02601824]
[1645179579874,0.06132725,40840.0,40839.0,0.02601824]
[1645179580072,0.06132725,40840.0,40839.0,0.02633552]
[1645179580371,0.06132725,40840.0,40839.0,0.35739552]
[1645179580573,0.12257625,40840.0,40839.0,0.35739552]
[1645179580774,0.12257625,40840.0,40839.0,0.63733052]
[1645179580978,0.12257625,40840.0,40839.0,0.02633552]
[1645179581175,0.12257625,40840.0,40839.0,0.35739552]
[1645179582071,0.12257625,40840.0,40839.0,0.35939552]
[1645179583329,0.12257625,40840.0,40839.0,0.35739552]
[1645179584127,0.12257625,40840.0,40839.0,0.35939552]
[1645179584328,0.1226921,40840.0,40839.0,0.35950913]
[1645179585330,0.1226921,40840.0,40839.0,0.35750913]
[1645179586137,0.1226921,40840.0,40839.0,0.35950913]
[1645179587080,0.1226921,40840.0,40839.0,0.36108795]
[1645179587275,0.1226921,40840.0,40839.0,0.35908795]
[1645179588075,0.1226921,40840.0,40839.0,0.36108795]
[1645179589275,0.1226921,40840.0,40839.0,0.35908795]
[1645179589678,0.1226921,40840.0,40839.0,0.33306971]
[1645179589976,0.0614431,40840.0,40839.0,0.33306971]
[1645179590177,0.0614431,40840.0,40839.0,0.33506971]
[1645179591527,0.0614431,40840.0,40839.0,0.33306971]
[1645179592131,0.0614431,40840.0,40839.0,0.33406971]
[1645179593331,0.0614431,40840.0,40839.0,0.33306971]
[1645179594133,0.06102654,40840.0,40839.0,0.33406971]
[1645179594433,0.18307962,40840.0,40839.0,0.33406971]
[1645179594678,0.18319547,40840.0,40839.0,0.33406971]
[1645179595280,0.18319547,40840.0,40839.0,0.33306971]
[1645179596079,0.18319547,40840.0,40839.0,0.33406971]
[1645179597281,0.18319547,40840.0,40839.0,0.33306971]
[1645179598082,0.18319547,40840.0,40839.0,0.33506971]
[1645179598533,0.18319547,40840.0,40839.0,0.33475243]
[1645179599435,0.18319547,40840.0,40839.0,0.33275243]
[1645179599635,0.18307962,40840.0,40839.0,0.33275243]
[1645179600636,0.18307962,40840.0,40839.0,0.33306971]
[1645179602104,0.18307962,40840.0,40839.0,0.33506971]
[1645179602695,0.18307962,40840.0,40839.0,0.33475243]
[1645179603496,0.18307962,40840.0,40839.0,0.33275243]
[1645179603697,0.18307962,40840.0,40839.0,0.33306971]
[1645179604102,0.18307962,40840.0,40839.0,0.33506971]
[1645179604902,0.06102654,40840.0,40839.0,0.33506971]
[1645179605301,0.07345374,40843.0,40841.0,0.33106]
[1645179605502,0.0523305,40842.0,40841.0,0.33106]
[1645179605701,0.0523305,40842.0,40841.0,0.52847381]
[1645179606228,0.0523305,40842.0,40841.0,0.52947381]
[1645179606528,0.1135765,40842.0,40841.0,0.52947381]
[1645179607331,0.131246,40842.0,40841.0,0.52847381]
[1645179607927,0.131246,40842.0,40841.0,0.19741381]
[1645179608128,0.131246,40842.0,40841.0,0.52847381]
[1645179608528,0.131246,40842.0,40841.0,0.19741381]
[1645179608729,0.131246,40842.0,40841.0,0.52847381]
[1645179608929,0.131246,40842.0,40841.0,0.19741381]
[1645179609128,0.131246,40842.0,40841.0,0.52847381]
[1645179609604,0.131246,40842.0,40841.0,0.51797013]
[1645179610199,0.131246,40842.0,40841.0,0.51897013]
[1645179610799,0.131246,40842.0,40841.0,0.18791013]
[1645179611201,0.131246,40842.0,40841.0,0.51897013]
[1645179611402,0.131246,40842.0,40841.0,0.18691013]
[1645179611800,0.131246,40842.0,40841.0,0.51978462]
[1645179612200,0.131246,40842.0,40841.0,0.52178462]
[1645179613434,0.131246,40842.0,40841.0,0.51978462]
[1645179614438,0.131246,40842.0,40841.0,0.18872462]
[1645179614641,0.131246,40842.0,40841.0,0.51978462]
[1645179615537,0.131246,40842.0,40841.0,0.18872462]
[1645179615738,0.131246,40842.0,40841.0,0.51978462]
[1645179616142,0.131246,40842.0,40841.0,0.19072462]
[1645179616338,0.131246,40842.0,40841.0,0.52178462]
[1645179616943,0.008754,40842.0,40841.0,0.52178462]
[1645179617986,0.008754,40842.0,40841.0,0.51978462]
[1645179618187,0.008754,40842.0,40841.0,0.52178462]
[1645179619986,0.008754,40842.0,40841.0,0.51978462]
[1645179620187,0.008754,40842.0,40841.0,0.52178462]
[1645179621437,0.008754,40842.0,40841.0,0.51978462]
[1645179622033,0.008754,40842.0,40841.0,0.52124968]
[1645179623635,0.12249,40844.0,40841.0,0.52124968]
[1645179623835,0.12249,40844.0,40842.0,0.33106]
[1645179624035,0.003754,40843.0,40842.0,0.33106]
[1645179624688,0.003754,40843.0,40842.0,0.3313747]
[1645179626291,0.003754,40843.0,40842.0,0.3333747]
[1645179626692,0.003754,40843.0,40842.0,0.3313747]
[1645179629332,0.003754,40843.0,40842.0,0.33148102]
[1645179631932,0.003754,40843.0,40842.0,0.3329914]
[1645179632184,0.003754,40843.0,40842.0,0.3349914]
[1645179633586,0.003754,40843.0,40842.0,0.3329914]
[1645179636135,0.003754,40843.0,40842.0,0.3349914]
[1645179637537,0.003754,40843.0,40842.0,0.3329914]
[1645179638138,0.003754,40843.0,40842.0,0.3349914]
[1645179639142,0.003754,40843.0,40842.0,0.6349914]
[1645179639590,0.003754,40843.0,40842.0,0.6329914]
[1645179646341,0.003754,40843.0,40842.0,0.63490156]
[1645179646743,0.003754,40843.0,40842.0,0.63458686]
[1645179647585,0.003754,40843.0,40842.0,0.63258686]
[1645179650183,0.003754,40843.0,40842.0,0.63558686]
[1645179651433,0.003754,40843.0,40842.0,0.63258686]
[1645179652336,0.003754,40843.0,40842.0,0.63458686]
[1645179652736,0.061243,40845.0,40843.0,1.00750799]
[1645179652935,0.00040396,40847.0,40844.0,0.63106]
[1645179653136,0.00040396,40847.0,40844.0,0.82592477]
[1645179653336,0.070732,40849.0,40844.0,0.82592477]
[1645179653639,0.070732,40849.0,40847.0,0.3531744]
[1645179653640,0.00040398,40848.0,40847.0,0.3531744]
[1645179653835,0.00040398,40848.0,40847.0,0.330978]
[1645179654237,0.00040398,40848.0,40847.0,0.332978]
[1645179654584,0.070732,40849.0,40848.0,0.330978]
[1645179654784,0.140732,40849.0,40848.0,0.330978]
[1645179654986,0.061232,40849.0,40848.0,0.31567749]
[1645179656388,0.061232,40849.0,40848.0,0.31667749]
[1645179657387,0.131232,40849.0,40848.0,0.001]
[1645179657590,0.061232,40849.0,40848.0,0.330943]
[1645179658741,0.131232,40849.0,40848.0,0.330943]
[1645179659037,0.061232,40849.0,40848.0,0.330943]
[1645179659637,0.061232,40849.0,40848.0,0.33104868]
[1645179660738,0.08835039,40849.0,40848.0,0.33104868]
[1645179660937,0.131232,40849.0,40848.0,0.33104868]
[1645179661442,0.061232,40849.0,40848.0,0.00010568]
[1645179661638,0.111232,40849.0,40848.0,0.33104868]
[1645179661838,0.061232,40849.0,40848.0,0.33104868]
[1645179662091,0.061232,40849.0,40848.0,0.33265232]
[1645179664685,0.131232,40849.0,40848.0,0.33265232]
[1645179664984,0.1063586,40849.0,40848.0,0.33265232]
[1645179665185,0.061232,40849.0,40848.0,0.33265232]
[1645179666239,0.131232,40849.0,40848.0,0.33265232]
[1645179666439,0.061232,40849.0,40848.0,0.33265232]
[1645179669344,0.0636819,40849.0,40848.0,0.33265232]
[1645179671192,0.12344041,40850.0,40848.0,0.33265232]
[1645179671193,0.07344041,40850.0,40848.0,0.63265232]
[1645179671390,0.07344041,40850.0,40848.0,0.33265232]
[1645179671587,0.07344041,40850.0,40849.0,0.0549]
[1645179671793,0.07344041,40850.0,40849.0,0.385843]
[1645179672389,0.07344041,40850.0,40849.0,0.387843]
[1645179673638,0.12344041,40850.0,40849.0,0.687843]
[1645179673839,0.07344041,40850.0,40849.0,0.687843]
[1645179674838,0.07344041,40850.0,40849.0,0.632943]
[1645179675738,0.07344041,40850.0,40849.0,0.330943]
[1645179677192,0.07344041,40850.0,40849.0,0.33246175]
[1645179679692,0.07344041,40850.0,40849.0,0.33257478]
[1645179688635,0.07344041,40850.0,40849.0,0.35704478]
[1645179691846,0.07344041,40850.0,40849.0,0.35904478]
[1645179692490,0.07344041,40850.0,40849.0,0.36104478]
[1645179692890,0.07344041,40850.0,40849.0,0.66104478]
[1645179693090,0.07344041,40850.0,40849.0,0.65704478]
[1645179693991,0.07344041,40850.0,40849.0,0.35904478]
[1645179695093,0.07344041,40850.0,40849.0,0.65904478]
[1645179695298,0.07344041,40850.0,40849.0,0.35704478]
[1645179697545,0.07344041,40850.0,40849.0,0.65704478]
[1645179698344,0.07344041,40850.0,40849.0,0.65904478]
[1645179699595,0.07344041,40850.0,40849.0,0.65704478]
[1645179700197,0.07344041,40850.0,40849.0,0.65904478]
[1645179700796,0.07344041,40850.0,40849.0,0.65896242]
[1645179701497,0.07344041,40850.0,40849.0,0.65696242]
[1645179702098,0.07344041,40850.0,40849.0,0.65896242]
[1645179703347,0.07344041,40850.0,40849.0,0.65696242]
[1645179704145,0.07344041,40850.0,40849.0,0.65896242]
[1645179704344,0.07344041,40850.0,40849.0,0.35896242]
[1645179705346,0.07344041,40850.0,40849.0,0.35696242]
[1645179706149,0.07344041,40850.0,40849.0,0.35896242]
[1645179706347,0.07344041,40850.0,40849.0,0.65896242]
[1645179707292,0.07344041,40850.0,40849.0,0.65696242]
[1645179708498,0.07344041,40850.0,40849.0,0.35696242]
[1645179714149,0.07344041,40850.0,40849.0,0.35896242]
[1645179714615,0.07278819,40850.0,40849.0,0.35896242]
[1645179715410,0.07278819,40850.0,40849.0,0.35696242]
[1645179716212,0.07278819,40850.0,40849.0,0.35896242]
[1645179716611,0.07278819,40850.0,40849.0,0.65896242]
[1645179717613,0.07278819,40850.0,40849.0,0.35896242]
[1645179718013,0.07278819,40850.0,40849.0,0.35696242]
[1645179719045,0.0726243,40850.0,40849.0,0.35696242]
[1645179719743,0.07179091,40850.0,40849.0,0.35696242]
[1645179722097,0.07179091,40850.0,40849.0,0.35796242]
[1645179723496,0.07179091,40850.0,40849.0,0.65796242]
[1645179724096,0.07179091,40850.0,40849.0,0.65996242]
[1645179724301,0.07179091,40850.0,40849.0,0.35996242]
[1645179724496,0.07077065,40850.0,40849.0,0.35996242]
[1645179725299,0.07077065,40850.0,40849.0,0.65696242]
[1645179726143,0.07077065,40850.0,40849.0,0.65896242]
[1645179726949,0.07077065,40850.0,40849.0,0.35896242]
[1645179727446,0.07077065,40850.0,40849.0,0.35696242]
[1645179728046,0.07077065,40850.0,40849.0,0.35896242]
[1645179729450,0.07077065,40850.0,40849.0,0.35696242]
[1645179729707,0.12077065,40850.0,40849.0,0.35696242]
[1645179730111,0.12077065,40850.0,40849.0,0.65896242]
[1645179730509,0.12077065,40850.0,40849.0,0.35896242]
[1645179732014,0.12077065,40850.0,40849.0,0.35696242]
[1645179738096,0.12077065,40850.0,40849.0,0.35896242]
[1645179739397,0.12077065,40850.0,40849.0,0.35696242]
[1645179742251,0.12077065,40850.0,40849.0,0.35896242]
[1645179743452,0.12077065,40850.0,40849.0,0.35696242]
[1645179747704,0.17077065,40850.0,40849.0,0.35696242]
[1645179748101,0.17077065,40850.0,40849.0,0.35687337]
[1645179749749,0.12077065,40850.0,40849.0,0.35687337]
[1645179750149,0.12077065,40850.0,40849.0,0.35887337]
[1645179751451,0.12077065,40850.0,40849.0,0.35687337]
[1645179752299,0.12077065,40850.0,40849.0,0.35887337]
[1645179753601,0.12077065,40850.0,40849.0,0.35687337]
[1645179754202,0.12077065,40850.0,40849.0,0.35887337]
[1645179755507,0.12077065,40850.0,40849.0,0.35687337]
[1645179758157,0.12077065,40850.0,40849.0,0.6141119]
[1645179759798,0.17077065,40850.0,40849.0,0.6141119]
[1645179760200,0.17077065,40850.0,40849.0,0.6161119]
[1645179760997,0.17077065,40850.0,40849.0,0.35887337]
[1645179761398,0.17077065,40850.0,40849.0,0.35687337]
[1645179762397,0.17077065,40850.0,40849.0,0.65028399]
[1645179764251,0.17077065,40850.0,40849.0,0.65228399]
[1645179764449,0.17093164,40850.0,40849.0,0.65228399]
[1645179764649,0.12093164,40850.0,40849.0,0.65228399]
[1645179765452,0.12093164,40850.0,40849.0,0.65028399]
[1645179766250,0.12093164,40850.0,40849.0,0.65228399]
[1645179766650,0.19093164,40850.0,40849.0,0.65228399]
[1645179767299,0.19093164,40850.0,40849.0,0.35887337]
[1645179767499,0.19093164,40850.0,40849.0,0.35687337]
[1645179768299,0.19093164,40850.0,40849.0,0.35887337]
[1645179768500,0.19093164,40850.0,40849.0,0.3588036]
[1645179769502,0.19093164,40850.0,40849.0,0.3568036]
[1645179770301,0.19093164,40850.0,40849.0,0.3588036]
[1645179770955,0.24093164,40850.0,40849.0,0.3588036]
[1645179771556,0.24093164,40850.0,40849.0,0.3568036]
[1645179771757,0.24093164,40850.0,40849.0,0.6568036]
[1645179772158,0.24093164,40850.0,40849.0,0.85164585]
[1645179772359,0.24093164,40850.0,40849.0,0.6588036]
[1645179773461,0.24093164,40850.0,40849.0,0.6568036]
[1645179773866,0.19093164,40850.0,40849.0,0.55164585]
[1645179774262,0.19093164,40850.0,40849.0,0.3568036]
[1645179780451,0.19093164,40850.0,40849.0,0.3588036]
[1645179781453,0.19093164,40850.0,40849.0,0.3568036]
[1645179782298,0.19093164,40850.0,40849.0,0.3588036]
[1645179784004,0.19085438,40850.0,40849.0,0.3588036]
[1645179784602,0.19093164,40850.0,40849.0,0.3588036]
[1645179785603,0.19093164,40850.0,40849.0,0.3568036]
[1645179789599,0.19077065,40850.0,40849.0,0.3568036]
[1645179790203,0.19077065,40850.0,40849.0,0.3588036]
[1645179791502,0.19077065,40850.0,40849.0,0.3568036]
[1645179792300,0.19077065,40850.0,40849.0,0.3588036]
[1645179793565,0.19077065,40850.0,40849.0,0.3568036]
[1645179794268,0.19077065,40850.0,40849.0,0.3588036]
[1645179796167,0.19077065,40850.0,40849.0,0.3568036]
[1645179796367,0.19077065,40850.0,40849.0,0.3588036]
[1645179797609,0.19077065,40850.0,40849.0,0.3568036]
[1645179798309,0.19077065,40850.0,40849.0,0.3588036]
[1645179798510,0.19077065,40850.0,40849.0,0.6588036]
[1645179799112,0.19077065,40850.0,40849.0,0.3588036]
[1645179799513,0.19077065,40850.0,40849.0,0.3568036]
[1645179800212,0.19077065,40850.0,40849.0,0.6568036]
[1645179800412,0.19077065,40850.0,40849.0,0.6588036]
[1645179801457,0.19077065,40850.0,40849.0,0.6568036]
[1645179801657,0.19077065,40850.0,40849.0,0.3568036]
[1645179802359,0.19077065,40850.0,40849.0,0.3588036]
[1645179803458,0.19077065,40850.0,40849.0,0.3568036]
[1645179804159,0.19077065,40850.0,40849.0,0.02619338]
[1645179807307,0.19077065,40850.0,40849.0,0.02608587]
[1645179808209,0.10677065,40850.0,40849.0,0.02608587]
[1645179809852,0.18021063,40850.0,40849.0,0.02608587]
[1645179812106,0.18021063,40850.0,40849.0,0.02651918]
[1645179812907,0.14078439,40850.0,40849.0,0.02651918]
[1645179813307,0.14078439,40850.0,40849.0,0.35745418]
[1645179813507,0.14078439,40850.0,40849.0,0.35945418]
[1645179814816,0.19078439,40850.0,40849.0,0.35745418]
[1645179815610,0.19078439,40850.0,40849.0,0.35945418]
[1645179815854,0.14078439,40850.0,40849.0,0.35945418]
[1645179816755,0.14078439,40850.0,40849.0,0.35745418]
[1645179818457,0.14078439,40850.0,40849.0,0.35845418]
[1645179821203,0.14078439,40850.0,40849.0,0.35745418]
[1645179821604,0.14078439,40850.0,40849.0,0.35845418]
[1645179822808,0.14078439,40850.0,40849.0,0.35745418]
[1645179823659,0.14078439,40850.0,40849.0,0.35945418]
[1645179824859,0.14078439,40850.0,40849.0,0.35745418]
[1645179825659,0.14078439,40850.0,40849.0,0.35945418]
[1645179826862,0.14078439,40850.0,40849.0,0.35745418]
[1645179827706,0.14078439,40850.0,40849.0,0.35945418]
[1645179828904,0.14078439,40850.0,40849.0,0.35745418]
[1645179829704,0.14078439,40850.0,40849.0,0.35976888]
[1645179830869,0.19078439,40850.0,40849.0,0.35776888]
[1645179831670,0.14078439,40850.0,40849.0,0.35976888]
[1645179832770,0.14078439,40850.0,40849.0,0.35776888]
[1645179833671,0.14078439,40850.0,40849.0,0.3596836]
[1645179834804,0.14078439,40850.0,40849.0,0.3576836]
[1645179837212,0.44078439,40850.0,40849.0,0.3576836]
[1645179837514,0.44078439,40850.0,40849.0,0.0267486]
[1645179837515,0.56441639,40850.0,40849.0,0.0267486]
[1645179837712,0.56441639,40850.0,40849.0,0.0287486]
[1645179837913,0.82034907,40850.0,40849.0,0.0287486]
[1645179838955,0.82034907,40850.0,40849.0,0.0267486]
[1645179839756,0.82334907,40850.0,40849.0,0.0267486]
[1645179840861,0.82034907,40850.0,40849.0,0.0267486]
[1645179843704,0.82334907,40850.0,40849.0,0.0267486]
[1645179844108,0.87334907,40850.0,40849.0,0.0267486]
[1645179844607,0.97334907,40850.0,40849.0,0.0267486]
[1645179845007,0.97034907,40850.0,40849.0,0.0267486]
[1645179845855,0.97334907,40850.0,40849.0,0.0267486]
[1645179846660,1.218732,40849.0,40838.0,0.00037916]
[1645179846864,0.12860141,40845.0,40838.0,0.00037916]
[1645179847060,0.06734441,40841.0,40838.0,0.00037916]
[1645179847260,0.08607641,40839.0,40838.0,0.00037916]
[1645179847461,0.06734441,40839.0,40838.0,0.00037916]
[1645179847661,0.08607641,40839.0,40834.0,0.0025]
[1645179847862,0.12860541,40835.0,40834.0,0.0025]
[1645179848262,0.11734441,40835.0,40834.0,0.0025]
[1645179849711,0.11734441,40835.0,40834.0,0.0055]
[1645179851010,0.11734441,40835.0,40834.0,0.0025]
[1645179851218,0.41734441,40835.0,40834.0,0.0025]
[1645179852010,0.41734441,40835.0,40834.0,0.00477647]
[1645179852411,0.47860841,40835.0,40834.0,0.00477647]
[1645179853660,0.47860841,40835.0,40834.0,0.00677647]
[1645179854262,0.49734041,40835.0,40834.0,0.00677647]
[1645179854462,0.47860841,40835.0,40834.0,0.00688149]
[1645179855167,0.70224041,40835.0,40834.0,0.00488149]
[1645179855364,1.322558,40834.0,40832.0,0.00040535]
[1645179855563,0.14097641,40833.0,40832.0,0.00040535]
[1645179855761,0.19097641,40833.0,40832.0,0.00040535]
[1645179856162,0.061272,40832.0,40829.0,0.001]
[1645179856367,0.06734441,40830.0,40829.0,0.001]
[1645179856563,0.14097641,40830.0,40829.0,0.001]
[1645179857410,0.44097641,40830.0,40829.0,0.001]
[1645179857613,0.44097641,40830.0,40827.0,0.03645769]
[1645179857814,0.06734441,40828.0,40827.0,0.03645769]
[1645179858012,0.20224841,40828.0,40827.0,0.03645769]
[1645179858213,0.18351641,40828.0,40827.0,0.00039921]
[1645179858413,0.48351641,40828.0,40827.0,0.00039921]
[1645179858613,0.141274,40827.0,40822.0,0.25545489]
[1645179858812,0.018732,40826.0,40825.0,0.00039922]
[1645179859017,0.06734441,40826.0,40825.0,0.00039922]
[1645179859215,0.11734441,40826.0,40825.0,0.00039922]
[1645179859715,0.11734441,40826.0,40825.0,0.001]
[1645179860959,0.11734441,40826.0,40822.0,0.25545489]
[1645179861157,0.06127,40825.0,40823.0,0.00040049]
[1645179861359,0.06734441,40824.0,40823.0,0.00040049]
[1645179861661,0.06127,40825.0,40824.0,0.13468881]
[1645179861862,0.07641706,40825.0,40824.0,0.1350005]
[1645179862257,0.42662864,40825.0,40824.0,0.1350005]
[1645179862858,0.72662864,40825.0,40824.0,0.1350005]
[1645179863258,0.72662864,40825.0,40824.0,0.13468881]
[1645179864462,0.48148158,40825.0,40824.0,0.13478756]
[1645179864726,0.42021158,40825.0,40824.0,0.13509925]
[1645179864923,0.42021158,40825.0,40824.0,0.13678756]
[1645179865724,0.42021158,40825.0,40824.0,0.13878756]
[1645179866126,0.42021158,40825.0,40824.0,0.13478756]
[1645179867026,0.42324756,40825.0,40824.0,0.13478756]
[1645179867826,0.42324756,40825.0,40824.0,0.13678756]
[1645179869067,0.42324756,40825.0,40824.0,0.13478756]
[1645179869667,0.42324756,40825.0,40824.0,0.1341468]
[1645179869869,0.44197956,40825.0,40824.0,0.1361468]
[1645179870070,0.91296644,40825.0,40824.0,0.1361468]
[1645179871171,0.91296644,40825.0,40824.0,0.1341468]
[1645179871770,0.91396644,40825.0,40824.0,0.1341468]
[1645179871976,0.93269844,40825.0,40824.0,0.1341468]
[1645179872216,0.91396644,40825.0,40824.0,0.1341468]
[1645179872415,0.93269844,40825.0,40824.0,0.1341468]
[1645179872815,0.91396644,40825.0,40823.0,0.00031169]
[1645179873017,0.91396644,40825.0,40820.0,0.00031169]
[1645179873018,1.143632,40824.0,40820.0,0.00031169]
[1645179873214,0.36995328,40823.0,40822.0,0.00037613]
[1645179873414,0.49485328,40823.0,40822.0,0.00037613]
[1645179873614,0.54485328,40823.0,40822.0,0.00037613]
[1645179874013,0.56358528,40823.0,40822.0,0.00037613]
[1645179874216,0.56358528,40823.0,40817.0,0.00031169]
[1645179874217,0.061282,40821.0,40817.0,0.00031169]
[1645179874518,0.20625716,40815.0,40814.0,0.00031169]
[1645179874715,0.27625716,40815.0,40813.0,0.35265167]
[1645179874913,0.07,40814.0,40813.0,0.35265167]
[1645179875114,0.07,40814.0,40813.0,0.68358667]
[1645179875315,0.07,40814.0,40813.0,0.35265167]
[1645179875513,0.07,40814.0,40813.0,0.00141169]
[1645179875714,0.07,40814.0,40813.0,0.33234669]
[1645179876564,0.07,40814.0,40813.0,0.00141169]
[1645179878867,0.443632,40814.0,40813.0,0.00141169]
[1645179879066,0.504925,40814.0,40813.0,0.00141169]
[1645179879267,0.486193,40814.0,40813.0,0.00141169]
[1645179879466,0.504925,40814.0,40813.0,0.00150474]
[1645179879713,0.486193,40814.0,40813.0,0.00150474]
[1645179879917,0.204925,40814.0,40813.0,0.00150474]
[1645179880514,0.1249,40814.0,40813.0,0.00150474]
[1645179880913,0.143632,40814.0,40813.0,0.00150474]
[1645179881315,0.1249,40814.0,40813.0,0.00150474]
[1645179881513,0.143632,40814.0,40813.0,0.00150474]
[1645179881716,0.1249,40814.0,40813.0,0.00150474]
[1645179881914,0.12789548,40814.0,40813.0,0.00150474]
[1645179882315,0.14662748,40814.0,40813.0,0.00150474]
[1645179882916,0.20792148,40814.0,40813.0,0.00150474]
[1645179883114,0.20892148,40814.0,40813.0,0.00150474]
[1645179884361,0.20792148,40814.0,40813.0,0.00150474]
[1645179885269,0.20892148,40814.0,40813.0,0.00150474]
[1645179886065,0.09272748,40814.0,40813.0,0.00150474]
[1645179886467,0.09108818,40814.0,40813.0,0.00150474]
[1645179886866,0.40373002,40814.0,40813.0,0.00150474]
[1645179887121,0.44629202,40814.0,40813.0,0.00250474]
[1645179887316,0.95693183,40814.0,40813.0,0.00250474]
[1645179887515,0.95693183,40814.0,40812.0,0.002]
[1645179887719,0.95693183,40814.0,40801.0,0.0011]
[1645179887720,0.55,40811.0,40801.0,0.0011]
[1645179887920,0.07,40807.0,40801.0,0.0011]
[1645179888116,0.67,40805.0,40801.0,0.0011]
[1645179888316,0.088732,40804.0,40801.0,0.0011]
[1645179889015,0.098032,40804.0,40801.0,0.0011]
[1645179889215,0.098032,40804.0,40800.0,0.0021]
[1645179889216,1.15,40803.0,40800.0,0.0021]
[1645179889414,0.088732,40801.0,40800.0,0.0021]
[1645179889613,0.143632,40801.0,40800.0,0.0021]
[1645179889813,0.073632,40801.0,40800.0,0.0021]
[1645179890013,0.37461325,40801.0,40800.0,0.0021]
[1645179890714,0.61501301,40801.0,40800.0,0.0021]
[1645179890966,0.2963936,40801.0,40800.0,0.0021]
[1645179891566,0.3149546,40801.0,40800.0,0.0021]
[1645179891767,0.4649546,40801.0,40800.0,0.0011]
[1645179892569,0.5649546,40801.0,40800.0,0.0011]
[1645179893172,0.8649546,40801.0,40800.0,0.0011]
[1645179893567,0.5649546,40801.0,40800.0,0.0011]
[1645179894171,0.7,40797.0,40793.0,0.0011]
[1645179894374,0.55098131,40794.0,40784.0,0.001]
[1645179894623,0.85,40789.0,40784.0,0.001]
[1645179894815,0.07,40786.0,40784.0,0.001]